Cogmind - Beta 12 @@@ ROGUE MODE // 2023.03.06 @ 23:52:30 Player: maxwell Result: Escaped! Performance ------------- Evolutions (9) 4500 Regions Visited (27) 5400 Robots Destroyed (225) 1125 Value Destroyed (15170) 15170 Prototype IDs (35) 700 Alien Tech Used (0) 0 Bonus (19508) 19508 TOTAL SCORE: 46403 Bonus ------- High Alert Combat Kills 2321 Follower Combat Kills 7731 Entered Garrisons 2200 Used RIF Installer 5500 Aligned with FarCom 300 Win 3000 Friendly Fire -1544 Cogmind --------- Core Integrity 996/1600 Matter 132/300 Energy 277/280 System Corruption 20% Temperature Warm (183) Movement Flying (22) Location To Epsilon Eridani Parts ------- > --- POWER (2) -------- Light Quantum Reactor Light Quantum Reactor > --- PROPULSION (6) --- Cooled Field Propulsion Drive Cooled Field Propulsion Drive Cooled Field Propulsion Drive Field Propulsion Array > --- UTILITY (14) ----- Experimental Coolant Injector Machine Analyzer Advanced Target Analyzer Relay Coupler [NC] (1) Relay Coupler [Swarmer] (18) Relay Coupler [Cutter] (20) Relay Coupler [Grunt] (6) Relay Coupler [Sentry] (4) > --- WEAPON (3) ------- Enhanced Nova Cannon > --- INVENTORY (5) ---- Relay Coupler [Brawler] (39) Relay Coupler [Brawler] (38) Relay Coupler [Duelist] (33) Relay Coupler [Proto] (16) Micro-nuke Launcher Peak State ------------ > --- POWER ------------ Micro Antimatter Reactor Quantum Reactor > --- PROPULSION ------- Heavy Treads Centrium Heavy Treads Centrium Heavy Treads > --- UTILITY ---------- Experimental Coolant Injector Lightpack 2.0 Advanced Transmission Jammer Improved Utility Shielding Layered Light Armor Plating Improved Remote Force Field Relay Coupler [NC] Relay Coupler [Swarmer] Relay Coupler [Cutter] Relay Coupler [Grunt] Relay Coupler [Sentry] Relay Coupler [Hunter] > --- WEAPON ----------- Enhanced Quantum Rifle Enhanced Quantum Rifle Advanced Remote Datajack > --- INVENTORY -------- Light Quantum Reactor Medium Treads Medium Treads Centrium Heavy Treads Advanced Heavy Siege Treads Advanced Heat Sink Experimental Coolant Injector Experimental Coolant Injector Huge Storage Unit Matter Compressor Relay Coupler [NC] Relay Coupler [NC] Relay Coupler [NC] Relay Coupler [NC] Relay Coupler [Swarmer] Relay Coupler [Grunt] Relay Coupler [Grunt] Relay Coupler [Grunt] Relay Coupler [Grunt] Relay Coupler [Brawler] Relay Coupler [Brawler] Relay Coupler [Brawler] Relay Coupler [Brawler] Relay Coupler [Duelist] Relay Coupler [Sentry] Relay Coupler [Sentry] Relay Coupler [Sentry] Relay Coupler [Demolisher] Relay Coupler [Demolisher] Relay Coupler [Specialist] Relay Coupler [Heavy] Relay Coupler [Heavy] Relay Coupler [Proto] Enhanced Quantum Rifle Compact HERF Cannon Micro-nuke Launcher Advanced Remote Datajack Advanced Remote Datajack [Rating: 191] Favorites ----------- Power Quantum Reactor Engine Improved Deuterium Engine Power Core Neutrino Core Reactor Quantum Reactor Propulsion Armored Treads Treads Armored Treads Flight Unit Cooled Field Propulsion Drive Utility Relay Coupler [Sentry] Device Advanced Transmission Jammer Storage Huge Storage Unit Processor Machine Analyzer Hackware Relay Coupler [Sentry] Protection Hardened Light Armor Plating Weapon Precision Beam Rifle Energy Gun Precision Beam Rifle Energy Cannon Heavy Phase Cannon Ballistic Gun Assault Rifle Launcher Rocket Launcher Special Weapon Improved Remote Datajack Impact Weapon Power Maul Slashing Weapon Dual-blade Saw Build | -11 -10 -10 -10 -9 -8 -8 -7 -7 -7 -7 -6 -6 -5 -5 -5 -5 -4 -4 -3 -3 -3 -3 -2 -2 -1 -1 -1 ------- Run | Jun Mat Min Exi Min Mat Gar Fac Gar Fac Gar Fac Gar Fac Gar Fac Gar Fac Gar Res Gar Res Gar Res Gar Acc Gar Acc Slots Evolved 18 | . . . . . 4 . 2 . . . 2 . 2 . . . 2 . 2 . . . 2 . 2 . . Power 1 | . . . . . . . . . . . . . . . . . 1 . . . . . . . . . . Propulsion 4 | . . . . . 2 . . . . . 1 . . . . . . . . . . . 1 . . . . Utility 12 | . . . . . 1 . 2 . . . 1 . 2 . . . 1 . 2 . . . 1 . 2 . . Weapon 1 | . . . . . 1 . . . . . . . . . . . . . . . . . . . . . . Parts Attached 368 | 6 11 2 . 6 15 16 23 12 12 19 7 20 5 18 27 14 6 24 3 13 4 16 5 20 8 18 38 Power 23 | 1 . . . . 2 1 . 1 . 1 . 1 . 1 1 . 1 4 . 1 1 1 . 1 . 1 4 Engine 6 | 1 . . . . 2 1 . . . 1 . 1 . . . . . . . . . . . . . . . Core 1 | . . . . . . . . . . . . . . . . . . . . . . . . 1 . . . Reactor 16 | . . . . . . . . 1 . . . . . 1 1 . 1 4 . 1 1 1 . . . 1 4 Propulsion 61 | 2 . . . 1 7 2 4 2 . 1 1 6 . 4 5 2 . 4 1 . . 2 1 1 . 2 13 Treads 53 | 2 . . . 1 7 2 4 2 . 1 1 6 . 4 5 2 . 4 1 . . 2 1 1 . 2 5 Leg . | . . . . . . . . . . . . . . . . . . . . . . . . . . . . Wheel . | . . . . . . . . . . . . . . . . . . . . . . . . . . . . Hover . | . . . . . . . . . . . . . . . . . . . . . . . . . . . . Flight 8 | . . . . . . . . . . . . . . . . . . . . . . . . . . . 8 Utility 168 | 1 8 1 . 3 2 4 9 4 10 8 4 7 4 5 11 8 5 10 2 10 3 10 2 12 4 10 11 Device 78 | . 3 . . 2 . 3 4 4 7 6 3 3 2 2 8 3 2 2 . 4 1 4 1 5 1 3 5 Storage 6 | 1 2 . . . 1 . . . . . . . . . . 1 1 . . . . . . . . . . Processor 4 | . . . . . 1 . . . . . . . . . . . . . . . . . . 1 . . 2 Hackware 42 | . . . . . . . 3 . 3 1 1 2 2 . 2 2 2 6 1 4 . 6 1 1 . 3 2 Protection 38 | . 3 1 . 1 . 1 2 . . 1 . 2 . 3 1 2 . 2 1 2 2 . . 5 3 4 2 Artifact . | . . . . . . . . . . . . . . . . . . . . . . . . . . . . Weapon 116 | 2 3 1 . 2 4 9 10 5 2 9 2 6 1 8 10 4 . 6 . 2 . 3 2 6 4 5 10 Energy Gun 45 | 1 3 1 . 2 4 6 5 1 1 4 . 3 . 3 3 2 . 1 . . . . . . 1 1 3 Energy Cannon 33 | . . . . . . . 1 1 . 3 1 1 . 2 5 1 . 3 . 2 . 2 1 3 2 2 3 Ballistic Gun 1 | 1 . . . . . . . . . . . . . . . . . . . . . . . . . . . Ballistic Cannon . | . . . . . . . . . . . . . . . . . . . . . . . . . . . . Launcher 12 | . . . . . . . . 3 . 1 . 1 . 1 1 . . . . . . 1 . 1 . . 3 Special Weapon 21 | . . . . . . 1 4 . 1 1 1 1 1 2 1 1 . 2 . . . . 1 . 1 2 1 Impact Weapon 2 | . . . . . . 2 . . . . . . . . . . . . . . . . . . . . . Slashing Weapon 2 | . . . . . . . . . . . . . . . . . . . . . . . . 2 . . . Piercing Weapon . | . . . . . . . . . . . . . . . . . . . . . . . . . . . . Special Melee Weapon . | . . . . . . . . . . . . . . . . . . . . . . . . . . . . Unidentified Prototypes 5 | . 1 . . . 1 . 1 . . . . . . . . . . . . . . . . . . . 2 Corrupted Parts 1 | . . . . 1 . . . . . . . . . . . . . . . . . . . . . . . System Corruption 3 | . . . . 3 . . . . . . . . . . . . . . . . . . . . . . . Parts Lost 67 | . . 1 . . 1 4 . . . 2 . 1 . . 6 . 1 5 . . 1 . . 12 1 3 29 Power 8 | . . . . . . 1 . . . . . . . . 1 . . 1 . . 1 . . . . 1 3 Propulsion 16 | . . . . . 1 1 . . . . . . . . 1 . . 2 . . . . . 1 . . 10 Utility 28 | . . 1 . . . 1 . . . 1 . 1 . . 3 . . 1 . . . . . 7 . 2 11 Weapon 15 | . . . . . . 1 . . . 1 . . . . 1 . 1 1 . . . . . 4 1 . 5 Highest Loss Streak 17 | . . 1 . . 1 2 . . . 1 . 1 . . 1 . 1 3 . . 1 . . 9 1 2 17 To Critical Strikes 4 | . . . . . . . . . . . . . . . . . . 2 . . . . . . . . 2 Average Slot Usage (%) 89 | . 98 99 100 100 99 98 91 91 91 93 100 99 99 97 91 85 72 78 76 73 75 74 70 74 76 76 74 Engine 4 | . 14 14 14 14 9 8 7 6 . 2 6 6 5 3 . . . . . . . . . . . . . Reactor 3 | . . . . . . . . . 7 4 . . . 1 4 5 5 9 9 9 9 9 8 6 4 6 7 Treads 24 | . 28 28 28 28 35 36 30 29 30 30 33 32 29 26 22 20 15 16 18 14 14 14 13 13 12 12 9 Device 9 | . . . . 5 9 12 16 15 12 9 20 8 12 12 14 7 12 10 4 3 4 4 6 8 12 11 8 Storage 7 | . 14 14 14 14 9 9 7 7 7 7 6 6 5 5 5 5 5 5 4 4 4 4 4 4 4 4 3 Hackware 11 | . . . . . . . . . 1 6 9 16 20 17 21 18 17 18 19 19 22 22 21 18 16 22 24 Protection 6 | . 12 13 14 8 . . 4 7 7 6 3 6 5 8 1 6 . 1 4 7 5 4 4 6 10 7 6 Energy Gun 12 | . 26 28 28 28 26 22 16 17 18 16 13 13 6 8 6 3 5 1 4 2 . . . . . . 4 Energy Cannon 3 | . . . . . . . 4 . . 2 . 1 5 4 5 6 5 8 4 3 9 8 6 5 6 7 1 Special Weapon 2 | . . . . . . . 1 . 1 2 5 4 3 2 3 5 5 4 4 4 4 4 4 1 1 4 3 Naked Turns . | . . . . . . . . . . . . . . . . . . . . . . . . . . . . Heaviest Build 146 | 14 56 56 56 58 97 101 122 127 126 131 121 128 125 144 143 146 65 73 77 86 84 97 98 102 79 88 78 Greatest Support 235 | 40 40 40 40 43 89 80 88 88 88 88 108 108 108 144 148 162 162 162 167 167 167 183 230 235 235 235 230 Greatest Overweight (x) 4 | . 1 1 1 1 1 1 2 1 1 1 1 1 1 1 . . . . . . . . . . . . 4 Average Overweight (x) . | . . 1 1 1 . 1 1 1 1 1 . . 1 . . . . . . . . . . . . . . Largest Inventory Capacity 40 | 8 20 20 20 20 25 25 25 25 25 25 25 25 25 25 25 25 40 40 40 40 40 40 40 40 40 40 40 Average Capacity 28 | 7 18 20 20 20 24 25 25 25 25 25 25 25 25 25 25 25 39 40 40 40 40 40 40 40 40 40 39 Most Carried 40 | 1 14 18 20 20 25 25 25 24 24 25 25 25 24 25 25 25 26 40 35 38 37 40 40 40 40 40 40 Average Carried 25 | . 10 15 18 19 22 24 24 23 23 23 22 24 23 22 23 23 21 33 32 35 34 36 35 36 38 34 32 Final Capacity 40 | 8 20 20 20 20 25 25 25 25 25 25 25 25 25 25 25 25 40 40 40 40 40 40 40 40 40 40 5 Final Carried 40 | 1 14 18 20 20 25 25 24 23 24 24 25 25 24 25 21 22 24 37 32 33 35 40 37 40 39 40 5 Class Distribution -------------------- 45% | Botlord-Mutant 19% | Mutant 11% | Bothacker-Mutant 7% | Skirmisher 7% | Bothacker-Skirmisher 3% | Hauler-Mutant Dominant Class ---------------- Mutant | -10/Materials Mutant | -10/Mines Mutant | -10/Exiles Mutant | -9/Mines Skirmisher | -8/Materials Skirmisher | -8/Garrison Bothacker-Skirmisher | -7/Factory Bothacker-Mutant | -7/Garrison Bothacker-Mutant | -7/Factory Bothacker-Mutant | -7/Garrison Bothacker-Mutant | -6/Factory Botlord-Mutant | -6/Garrison Botlord-Mutant | -5/Factory Botlord-Mutant | -5/Garrison Botlord-Mutant | -5/Factory Botlord-Mutant | -5/Garrison Botlord-Mutant | -4/Factory Botlord-Mutant | -4/Garrison Botlord-Mutant | -3/Research Botlord-Mutant | -3/Garrison Botlord-Mutant | -3/Research Botlord-Mutant | -3/Garrison Botlord-Mutant | -2/Research Hauler-Mutant | -2/Garrison Hauler-Mutant | -1/Access Botlord-Mutant | -1/Garrison Botlord-Mutant | -1/Access Resources | -11 -10 -10 -10 -9 -8 -8 -7 -7 -7 -7 -6 -6 -5 -5 -5 -5 -4 -4 -3 -3 -3 -3 -2 -2 -1 -1 -1 ----------- Run | Jun Mat Min Exi Min Mat Gar Fac Gar Fac Gar Fac Gar Fac Gar Fac Gar Fac Gar Res Gar Res Gar Res Gar Acc Gar Acc Matter Collected 7313 | 128 242 20 . 155 131 222 298 198 219 235 102 316 71 250 450 337 23 522 . 647 108 370 74 463 55 840 837 Remotely . | . . . . . . . . . . . . . . . . . . . . . . . . . . . . Salvage Created 10150 | . 669 236 . 526 965 959 589 537 145 472 54 88 41 287 878 183 3 620 . 263 190 96 73 1358 98 640 180 Parts 454 | . 46 15 . 19 47 25 26 27 4 20 3 5 2 12 35 12 3 23 . 14 7 5 1 57 3 28 15 Haulers Intercepted 1 | . 1 . . . . . . . . . . . . . . . . . . . . . . . . . . Recyclers Shooed 2 | . . . . . 1 . 1 . . . . . . . . . . . . . . . . . . . . Parts Field Recycled . | . . . . . . . . . . . . . . . . . . . . . . . . . . . . Retrieved Matter . | . . . . . . . . . . . . . . . . . . . . . . . . . . . . Parts Self-Destructed . | . . . . . . . . . . . . . . . . . . . . . . . . . . . . Prevented . | . . . . . . . . . . . . . . . . . . . . . . . . . . . . Kills | -11 -10 -10 -10 -9 -8 -8 -7 -7 -7 -7 -6 -6 -5 -5 -5 -5 -4 -4 -3 -3 -3 -3 -2 -2 -1 -1 -1 ------- Run | Jun Mat Min Exi Min Mat Gar Fac Gar Fac Gar Fac Gar Fac Gar Fac Gar Fac Gar Res Gar Res Gar Res Gar Acc Gar Acc Combat Hostiles Destroyed 196 | . 12 2 . 7 19 20 11 20 3 12 2 2 1 7 18 5 . 9 . 5 2 1 1 21 1 10 5 Melee 5 | . . . . . . . . . . . . . . . . . . . . . . . . 5 . . . Guns 103 | . 11 2 . 7 18 17 9 10 2 8 2 2 1 4 8 1 . . . 1 . . . . . . . Cannons 39 | . . . . . . . 1 . . . . . . . 6 4 . 9 . 3 1 . 1 4 . 10 . AOE 33 | . . . . . . . . 10 . 4 . . . 2 3 . . . . . . . . 9 . . 5 Classes Destroyed 19 | . 6 3 . . 5 2 . . . . . 1 . . . . . . . 1 . . . . . . 1 Worker 2 | . 2 . . . . . . . . . . . . . . . . . . . . . . . . . . Builder 7 | . 2 2 . . . . . . . . . . . . . . 1 . . . . . . . . . 2 Tunneler 3 | . . 1 . 1 1 . . . . . . . . . . . . . . . . . . . . . . Hauler 1 | . 1 . . . . . . . . . . . . . . . . . . . . . . . . . . Recycler 4 | . . 1 . 2 . . 1 . . . . . . . . . . . . . . . . . . . . Mechanic 1 | . 1 . . . . . . . . . . . . . . . . . . . . . . . . . . Watcher 6 | . 1 . . . 4 . . . . . . . . . . . . . . . . . . . . . 1 Swarmer 47 | . . . . . 5 2 . 10 . 3 2 . . 3 4 3 . 1 . 2 . . . 7 . . 5 Cutter 4 | . . . . . . . . . . . . . . . . . . . . 1 . . . 3 . . . Grunt 75 | . 12 1 . 7 9 8 7 8 . 7 . . . 2 2 1 . . . 1 . . 1 6 1 2 . Brawler 8 | . . . . . 1 1 . 2 . . . . . . 2 . . . . . . . . 2 . . . Duelist 2 | . . . . . 1 . . . . . . . . . . . . . . 1 . . . . . . . Sentry 17 | . . . . . 3 3 1 . 1 1 . . . 1 . . . . . . 2 1 . 4 . . . Demolisher 1 | . . . . . . . . . . . . . . . . . . . . . . . . . . . 1 Specialist 1 | . . . . . . 1 . . . . . . . . . . . . . . . . . . . . . Hunter 17 | . . . . . 1 4 . . . . . . 1 1 3 1 . 5 . . . . . 1 . . . Programmer 25 | . . . . . . 1 3 . 2 1 . 1 . . 7 . . 3 . . . . . . . 7 . Behemoth 3 | . . . . . . . . . . . . 1 . . . . . . . . . . . 1 . 1 . Assembled 1 | . . 1 . . . . . . . . . . . . . . . . . . . . . . . . . Thug 1 | . . . . 1 . . . . . . . . . . . . . . . . . . . . . . . Best Kill Streak 8 | . 3 2 . 3 6 4 3 6 1 5 2 1 1 2 4 2 1 2 . 2 1 1 1 8 1 2 6 Combat Bots Only 8 | . 3 1 . 3 4 4 3 6 1 5 2 1 1 2 4 2 . 2 . 2 1 1 1 8 1 2 5 Max Kills in Single Turn 5 | . 2 1 . 2 2 1 1 3 1 3 2 1 1 1 2 2 1 1 . 1 1 1 1 5 1 1 2 Gunslinging 1 | . 1 . . 1 1 . . . . 1 . . . . . . . . . . . . . . . . . Exploded 5 | . . . . . . . . 3 . 3 . . . 1 2 . . . . . . . . 5 . . 2 Melee 1 | . . . . . . . . . . . . . . . . . . . . . . . . 1 . . . Uniques/NPCs Destroyed . | . . . . . . . . . . . . . . . . . . . . . . . . . . . . Combat | -11 -10 -10 -10 -9 -8 -8 -7 -7 -7 -7 -6 -6 -5 -5 -5 -5 -4 -4 -3 -3 -3 -3 -2 -2 -1 -1 -1 -------- Run | Jun Mat Min Exi Min Mat Gar Fac Gar Fac Gar Fac Gar Fac Gar Fac Gar Fac Gar Res Gar Res Gar Res Gar Acc Gar Acc Damage Taken 23601 | . 456 138 . 105 749 1606 622 336 279 484 97 939 21 1005 1392 560 560 1929 65 577 430 620 48 3728 327 1516 5012 Core 1907 | . 47 . . . 141 111 39 16 6 32 20 97 . 77 141 . 25 228 10 21 29 . . 263 . 119 485 Absorbed by Shields 1916 | . . . . . . . . . . 14 . . . 37 . . . 411 . . . 71 45 564 24 514 236 Reduced by Siege Mode 802 | . . . . . . . . . . . . . . . 5 . . 93 . . . . . 198 . 36 470 Redirected to Shielding 263 | . . . . . . . . . . . . . . . . . . . . . . . . 36 . 7 220 Regen/Repaired (Parts) 330 | . . . . . 240 . . . . . . . . . 90 . . . . . . . . . . . . Core Remaining (%) 80 | 100 . . . 81 . 54 . . . 86 . 86 . . . 78 . 78 . . . 95 . 81 . . 62 Volleys Fired 980 | . 36 20 . 20 50 53 38 33 12 28 11 52 7 45 68 28 9 69 12 68 14 37 19 51 5 95 100 Largest 3 | . 2 2 . 2 3 3 3 3 3 3 2 3 2 3 3 2 1 2 1 2 1 2 1 2 2 2 2 Hottest 239 | . 112 112 . 131 230 183 212 183 183 183 122 183 151 239 220 180 7 180 7 185 94 214 120 169 184 184 159 Shots Fired 1540 | . 72 40 . 39 149 133 80 57 26 52 16 90 8 80 107 41 9 97 12 73 15 49 19 53 9 100 114 Gun 816 | . 72 40 . 39 149 130 65 43 22 39 10 67 1 38 40 7 . . . 6 . . . . . 1 47 Cannon 348 | . . . . . . . 5 2 . 8 1 6 1 33 47 22 . 65 . 17 12 26 4 37 9 46 7 Launcher 38 | . . . . . . . . 12 . 3 . . . 2 2 . . . . . . . . 11 . . 8 Special 338 | . . . . . . 3 10 . 4 2 5 17 6 7 18 12 9 32 12 50 3 23 15 5 . 53 52 Kinetic . | . . . . . . . . . . . . . . . . . . . . . . . . . . . . Thermal 1104 | . 72 40 . 39 149 130 70 45 22 47 11 73 2 71 86 29 . 65 . 9 1 14 4 26 4 43 52 Explosive 38 | . . . . . . . . 12 . 3 . . . 2 2 . . . . . . . . 11 . . 8 Electromagnetic 60 | . . . . . . . . . . . . . . . 1 . . . . 14 11 12 . 11 5 4 2 Robot Hit Streak 28 | . 8 7 . 6 15 22 27 10 24 28 13 23 6 6 16 5 4 18 14 11 7 13 13 9 7 10 21 Robot Miss Streak 8 | . 5 4 . 4 8 2 2 3 1 1 1 4 1 4 2 6 1 2 . 5 2 2 2 3 2 3 3 Penetration Max . | . . . . . . . . . . . . . . . . . . . . . . . . . . . . Secondary Targets 17 | . 2 . . 3 7 1 2 . . 1 . . . . . . . . . . . . . . . . 1 Max Gunslinging Chain 1 | . 1 . . 1 1 1 1 . . 1 . . . . . . . . . . . . . . . . 1 Shots Hit Robots 1065 | . 41 25 . 19 107 110 60 35 25 28 12 66 6 43 72 18 7 69 12 47 10 36 14 52 5 70 76 Core Hits 395 | . 19 14 . 13 42 36 25 43 5 21 5 8 1 14 31 7 . 17 . 4 3 3 1 50 1 13 19 Critical Kills . | . . . . . . . . . . . . . . . . . . . . . . . . . . . . Critical Parts Destroyed . | . . . . . . . . . . . . . . . . . . . . . . . . . . . . Critical Strikes 59 | . 5 1 . 6 10 11 7 4 1 3 1 4 . 1 . . . . . . . . . 5 . . . Burn 54 | . 5 1 . 6 10 11 7 4 1 3 1 4 . 1 . . . . . . . . . . . . . Corrupt 1 | . . . . . . . . . . . . . . . . . . . . . . . . 1 . . . Sever 4 | . . . . . . . . . . . . . . . . . . . . . . . . 4 . . . Melee Attacks 39 | . . . . . . 14 . . . . . . . . . . . . . . . . . 25 . . . Impact 14 | . . . . . . 14 . . . . . . . . . . . . . . . . . . . . . Slashing 25 | . . . . . . . . . . . . . . . . . . . . . . . . 25 . . . Piercing . | . . . . . . . . . . . . . . . . . . . . . . . . . . . . Sneak Attacks . | . . . . . . . . . . . . . . . . . . . . . . . . . . . . Combat Hostiles . | . . . . . . . . . . . . . . . . . . . . . . . . . . . . Follow-up Attacks 3 | . . . . . . . . . . . . . . . . . . . . . . . . 3 . . . Damage Inflicted 26375 | . 737 427 . 425 1820 1933 1014 1684 474 849 164 982 18 1488 2337 292 16 1747 . 293 241 587 41 4368 203 1541 2694 Guns 11667 | . 737 424 . 414 1816 1933 920 574 473 432 149 982 18 464 1003 72 . . . 31 . . . . . . 1225 Cannons 7337 | . . . . . . . 94 . . . . . . 419 978 220 . 1692 . 262 241 587 41 991 203 1525 84 Explosions 6757 | . . . . . . . . 1110 . 417 . . . 605 356 . . 53 . . . . . 2847 . . 1369 Melee 530 | . . . . . . . . . . . . . . . . . . . . . . . . 530 . . . Ramming 84 | . . 3 . 11 4 . . . 1 . 15 . . . . . 16 2 . . . . . . . 16 16 Kinetic . | . . . . . . . . . . . . . . . . . . . . . . . . . . . . Thermal 17826 | . 737 424 . 414 1816 1933 1014 574 473 432 149 982 18 883 1981 292 . 1745 . 73 . 369 41 646 74 1488 1268 Explosive 6704 | . . . . . . . . 1110 . 417 . . . 605 356 . . . . . . . . 2847 . . 1369 Electromagnetic 1231 | . . . . . . . . . . . . . . . . . . . . 220 241 218 . 345 129 37 41 Impact . | . . . . . . . . . . . . . . . . . . . . . . . . . . . . Slashing 530 | . . . . . . . . . . . . . . . . . . . . . . . . 530 . . . Piercing . | . . . . . . . . . . . . . . . . . . . . . . . . . . . . Highest Corruption 20 | . . . . 3 1 1 2 2 2 2 . . . . 11 11 . 1 3 3 3 4 . 1 3 11 20 Average Corruption 4 | . . . . 3 1 1 1 2 1 1 . . . . 3 11 . 1 2 3 3 3 . 1 1 10 15 Corruption Purged 2 | . . . . . . . . . 2 . . . . . . . . . . . . . . . . . . Corruption Blocked . | . . . . . . . . . . . . . . . . . . . . . . . . . . . . Effects 360 | . . . . 20 7 12 10 20 5 17 . . . . 20 48 . 8 4 27 11 27 . 8 2 67 47 Message Errors 93 | . . . . 10 3 2 1 2 1 3 . . . . 7 16 . 4 2 6 2 5 . 1 . 20 8 Matter Fused 90 | . . . . 4 3 4 1 6 2 3 . . . . 8 10 . 1 1 7 4 8 . 1 1 15 11 Heat Flow Errors 38 | . . . . . . 2 2 4 1 2 . . . . 1 9 . 1 . 3 1 2 . . 1 5 4 Energy Discharges 37 | . . . . . . 2 3 2 1 3 . . . . 2 2 . . . 2 . 5 . 2 . 6 7 Parts Rejected 6 | . . . . . . 1 . 1 . 1 . . . . . . . . . 1 . . . . . . 2 Parts Fused 2 | . . . . 1 . . . . . . . . . . . . . . . . . . . . . . 1 Data Loss (minor) 39 | . . . . 3 . . 1 1 . 3 . . . . 2 6 . . . 4 1 1 . 1 . 10 6 Data Loss (major) 21 | . . . . . 1 . 1 3 . 1 . . . . . 1 . 1 1 . 2 1 . 2 . 6 1 Misfires 21 | . . . . 1 . . 1 1 . 1 . . . . . 3 . 1 . 2 1 5 . 1 . 4 . Alerts 6 | . . . . 1 . 1 . . . . . . . . . 1 . . . 2 . . . . . 1 . Misdirections 3 | . . . . . . . . . . . . . . . . . . . . . . . . . . . 3 Weapon Failures 4 | . . . . . . . . . . . . . . . . . . . . . . . . . . . 4 Overload Shots . | . . . . . . . . . . . . . . . . . . . . . . . . . . . . Overflow Damage 571 | . . . . . . . 3 . . 3 . . . 21 64 9 . 65 . 10 . 34 . 148 7 50 157 Projectiles 318 | . . . . . . . 3 . . . . . . 11 64 9 . 65 . 10 . 34 . 65 7 50 . Explosions 253 | . . . . . . . . . . 3 . . . 10 . . . . . . . . . 83 . . 157 Melee . | . . . . . . . . . . . . . . . . . . . . . . . . . . . . Knockbacks 1 | . . . . . . . . . . . 1 . . . . . . . . . . . . . . . . Impact 1 | . . . . . . . . . . . 1 . . . . . . . . . . . . . . . . Kinetic . | . . . . . . . . . . . . . . . . . . . . . . . . . . . . Secondary . | . . . . . . . . . . . . . . . . . . . . . . . . . . . . Self-Inflicted Damage 357 | . . . . . . . . . . . . . . 87 . . . 33 . . . . . 158 . . 79 Shots 8 | . . . . . . . . . . . . . . 2 . . . 1 . . . . . 3 . . 2 Rammed 13 | . . 1 . 3 1 . . . 1 . 1 . . . . . 1 1 . . . . . . . 3 1 Targets Rammed 16 | . . 1 . 5 1 . . . 1 . 1 . . . . . 2 1 . . . . . . . 3 1 Kicked . | . . . . . . . . . . . . . . . . . . . . . . . . . . . . Crushed 3 | . . . . 2 . . . . . . . . . . . . 1 . . . . . . . . . . Highest Temperature 511 | . 388 295 . 348 382 343 153 511 175 354 30 288 . 285 356 360 21 420 . 420 335 447 164 344 208 470 295 Average Temperature 122 | . 126 119 . 133 142 149 66 133 67 114 18 59 . 112 105 109 21 101 . 138 164 131 81 157 118 117 76 Received Heat Transfer 3414 | . 240 15 . 57 378 450 174 72 12 218 45 297 6 237 144 135 145 48 9 9 63 76 8 444 27 61 44 Effects 44 | . 2 2 . 2 5 8 . 1 . 1 . . . 2 1 2 . 5 . 1 . 10 . 2 . . . Shutdowns 6 | . . . . . 1 . . . . . . . . . . . . 2 . 1 . 2 . . . . . Energy Bleed 18 | . 2 . . 1 1 3 . . . 1 . . . 2 . 2 . 1 . . . 3 . 2 . . . Interference 13 | . . 2 . . 1 5 . . . . . . . . . . . 2 . . . 3 . . . . . Matter Decay 1 | . . . . 1 . . . . . . . . . . . . . . . . . . . . . . . Short Circuit 1 | . . . . . . . . . . . . . . . 1 . . . . . . . . . . . . Damage (minor) 4 | . . . . . 2 . . . . . . . . . . . . . . . . 2 . . . . . Damage (major) 1 | . . . . . . . . 1 . . . . . . . . . . . . . . . . . . . Siege Activations 11 | . . . . . . . . . . . . . . . 1 . . 4 . . . . . 3 . 2 1 Total Turns 196 | . . . . . . . . . . . . . . . 8 . . 60 . . . . . 28 . 42 58 Longest Duration 58 | . . . . . . . . . . . . . . . 8 . . 30 . . . . . 19 . 31 58 Robots Corrupted 7 | . . . . . . . . . . . . . . . . . . . . 1 1 1 . 3 1 . . Combat Hostiles 7 | . . . . . . . . . . . . . . . . . . . . 1 1 1 . 3 1 . . Parts Fried 13 | . . . . . . . . . . . . . . . . . . . . 1 2 1 . 3 1 5 . Impact Corruptions . | . . . . . . . . . . . . . . . . . . . . . . . . . . . . Robots Melted 9 | . 1 . . . 1 3 1 . 1 . . . . 1 1 . . . . . . . . . . . . Combat Hostiles 9 | . 1 . . . 1 3 1 . 1 . . . . 1 1 . . . . . . . . . . . . Parts Melted 90 | . 7 2 . 4 14 21 6 3 7 8 . . 1 4 12 . . 1 . . . . . . . . . Heat Transferred 28007 | . 1961 999 . 1258 4677 4790 2516 1554 851 1147 407 2257 37 1406 1998 148 . 309 . 74 . 296 37 259 . . 1026 Parts Sabotaged . | . . . . . . . . . . . . . . . . . . . . . . . . . . . . Parts Stolen . | . . . . . . . . . . . . . . . . . . . . . . . . . . . . Parts Stripped . | . . . . . . . . . . . . . . . . . . . . . . . . . . . . Power Chain Reactions 1 | . . . . . . . . . . . . . . . . . . 1 . . . . . . . . . Missiles Intercepted . | . . . . . . . . . . . . . . . . . . . . . . . . . . . . Alert | -11 -10 -10 -10 -9 -8 -8 -7 -7 -7 -7 -6 -6 -5 -5 -5 -5 -4 -4 -3 -3 -3 -3 -2 -2 -1 -1 -1 ------- Run | Jun Mat Min Exi Min Mat Gar Fac Gar Fac Gar Fac Gar Fac Gar Fac Gar Fac Gar Res Gar Res Gar Res Gar Acc Gar Acc Peak Influence 1331 | . 202 45 . 74 340 950 500 931 548 845 588 994 669 838 581 757 869 1093 629 853 487 947 558 1281 784 1331 1171 Initial 798 | . . 8 . . 28 102 498 113 488 277 443 405 521 349 439 21 396 601 614 101 475 365 532 405 768 467 798 Average 477 | . 52 13 . 32 115 535 222 650 432 578 461 685 563 553 385 383 590 852 191 595 424 640 538 850 768 853 520 Maximum Alert Level 4 | . 1 . . . 1 3 2 3 2 3 2 3 2 3 2 3 3 3 2 3 2 3 2 4 3 4 4 Low Security (%) 27 | 100 99 100 . 100 81 7 63 3 . . . . . . 13 30 . . 78 10 . . . . . . 28 Level 1 12 | . . . . . 18 24 18 7 45 29 28 . . 14 23 12 35 . 1 14 30 3 . 21 . . 18 Level 2 34 | . . . . . . 34 18 48 54 47 71 57 100 53 63 51 28 25 20 35 69 65 100 9 3 39 . Level 3 24 | . . . . . . 33 . 40 . 23 . 42 . 31 . 4 36 74 . 40 . 30 . 43 96 48 48 Level 4 2 | . . . . . . . . . . . . . . . . . . . . . . . . 25 . 11 3 Level 5 . | . . . . . . . . . . . . . . . . . . . . . . . . . . . . High Security . | . . . . . . . . . . . . . . . . . . . . . . . . . . . . Max Security . | . . . . . . . . . . . . . . . . . . . . . . . . . . . . Squads Dispatched 42 | . 4 . . 1 2 . 8 . 1 . 3 . 1 . 6 . 4 . 1 . 1 . 3 . 1 . 6 Investigation 10 | . 2 . . 1 2 . 1 . . . 1 . 1 . . . . . . . . . . . . . 2 Extermination 15 | . . . . . . . 3 . 1 . 1 . . . 4 . . . . . 1 . 1 . 1 . 3 Reinforcement 10 | . 2 . . . . . 3 . . . . . . . 1 . 1 . 1 . . . 2 . . . . Assault 3 | . . . . . . . . . . . . . . . 1 . 1 . . . . . . . . . 1 Garrison 4 | . . . . . . . 1 . . . 1 . . . . . 2 . . . . . . . . . . Intercept . | . . . . . . . . . . . . . . . . . . . . . . . . . . . . Searches Triggered . | . . . . . . . . . . . . . . . . . . . . . . . . . . . . Construction Impeded . | . . . . . . . . . . . . . . . . . . . . . . . . . . . . Haulers Reinforced 2 | . . . . . . . 1 . . . . . . . . . . . . . . . 1 . . . . Active Scanning Responses . | . . . . . . . . . . . . . . . . . . . . . . . . . . . . Cargo Convoy Interrupts . | . . . . . . . . . . . . . . . . . . . . . . . . . . . . Alert ID Control Effect 76 | . . . . . . . . . . . . . . . . . . . . 1 1 20 3 9 . 15 27 Stealth | -11 -10 -10 -10 -9 -8 -8 -7 -7 -7 -7 -6 -6 -5 -5 -5 -5 -4 -4 -3 -3 -3 -3 -2 -2 -1 -1 -1 --------- Run | Jun Mat Min Exi Min Mat Gar Fac Gar Fac Gar Fac Gar Fac Gar Fac Gar Fac Gar Res Gar Res Gar Res Gar Acc Gar Acc Distress Signals 10 | . . . . . 4 . 1 . . . . . . . . . 3 . . . . . . . . . 2 Communications Jammed 150 | . . . . . . . . . . . 3 . . . 23 . 6 . . . . 51 1 . . . 66 Distress Signals 150 | . . . . . . . . . . . 3 . . . 23 . 6 . . . . 51 1 . . . 66 Times Spotted 553 | . 23 10 . 8 32 27 17 20 6 16 14 27 8 15 36 19 27 25 6 32 6 33 8 30 2 50 56 Peak Tracking Total 12 | . 5 3 . 3 4 4 3 4 3 6 4 5 3 6 5 4 7 3 2 7 3 6 3 9 1 6 12 Tactical Retreats 12 | . 2 . . . . 4 . . . . . . . . 1 . 1 . . . . . . . . . 4 Traps | -11 -10 -10 -10 -9 -8 -8 -7 -7 -7 -7 -6 -6 -5 -5 -5 -5 -4 -4 -3 -3 -3 -3 -2 -2 -1 -1 -1 ------- Run | Jun Mat Min Exi Min Mat Gar Fac Gar Fac Gar Fac Gar Fac Gar Fac Gar Fac Gar Res Gar Res Gar Res Gar Acc Gar Acc Traps Triggered 56 | . 2 1 . . . 2 3 5 1 2 1 13 . 5 6 . 1 2 2 1 1 . . 1 1 1 5 Indirectly . | . . . . . . . . . . . . . . . . . . . . . . . . . . . . Trap Hack Attempts . | . . . . . . . . . . . . . . . . . . . . . . . . . . . . Triggered . | . . . . . . . . . . . . . . . . . . . . . . . . . . . . Disarmed . | . . . . . . . . . . . . . . . . . . . . . . . . . . . . Reprogrammed . | . . . . . . . . . . . . . . . . . . . . . . . . . . . . Reused . | . . . . . . . . . . . . . . . . . . . . . . . . . . . . Traps Extracted 4 | . . . . 4 . . . . . . . . . . . . . . . . . . . . . . . Installed . | . . . . . . . . . . . . . . . . . . . . . . . . . . . . Triggered . | . . . . . . . . . . . . . . . . . . . . . . . . . . . . Most Traps Carried 4 | . . . . 4 4 . . . . . . . . . . . . . . . . . . . . . . Machines | -11 -10 -10 -10 -9 -8 -8 -7 -7 -7 -7 -6 -6 -5 -5 -5 -5 -4 -4 -3 -3 -3 -3 -2 -2 -1 -1 -1 ---------- Run | Jun Mat Min Exi Min Mat Gar Fac Gar Fac Gar Fac Gar Fac Gar Fac Gar Fac Gar Res Gar Res Gar Res Gar Acc Gar Acc Machines Disabled 41 | . 1 3 . . 1 1 . 2 . 2 . 2 . 2 1 3 . 3 . 6 . 3 . 6 . 3 2 Max in Single Turn 1 | . 1 . . . 1 1 . 1 . 1 . 1 . 1 1 1 . 1 . 1 . 1 . 1 . 1 1 Garrison Access 1 | . . . . . . . . . . . . . . . 1 . . . . . . . . . . . . Garrison Relay 24 | . . . . . . 1 . . . 2 . 2 . 1 . 3 . 3 . 3 . 3 . 3 . 3 . Phase Generator 1 | . . . . . . . . 1 . . . . . . . . . . . . . . . . . . . Machines Repaired . | . . . . . . . . . . . . . . . . . . . . . . . . . . . . Machines Sabotaged . | . . . . . . . . . . . . . . . . . . . . . . . . . . . . Overloaded Fab Kills . | . . . . . . . . . . . . . . . . . . . . . . . . . . . . Hacking | -11 -10 -10 -10 -9 -8 -8 -7 -7 -7 -7 -6 -6 -5 -5 -5 -5 -4 -4 -3 -3 -3 -3 -2 -2 -1 -1 -1 --------- Run | Jun Mat Min Exi Min Mat Gar Fac Gar Fac Gar Fac Gar Fac Gar Fac Gar Fac Gar Res Gar Res Gar Res Gar Acc Gar Acc Machines Accessed 60 | . 5 1 2 2 9 3 3 2 2 3 2 2 1 1 4 2 1 3 1 2 1 1 1 2 1 3 . Terminals 41 | . 5 . . 1 6 3 1 2 1 3 1 2 . 1 2 2 . 3 . 2 . 1 . 2 . 3 . Fabricators 1 | . . . . . . . 1 . . . . . . . . . . . . . . . . . . . . Repair Stations 2 | . . . . . 1 . . . . . . . . . 1 . . . . . . . . . . . . Recycling Units . | . . . . . . . . . . . . . . . . . . . . . . . . . . . . Scanalyzers 1 | . . . . . 1 . . . . . . . . . . . . . . . . . . . . . . Garrison Access 11 | . . . . . 1 . 1 . 1 . 1 . 1 . 1 . 1 . 1 . 1 . 1 . 1 . . Total Hacks 121 | . 13 1 2 5 24 4 6 4 3 5 5 2 2 2 17 3 1 7 1 2 1 2 2 2 1 4 . Successful 63 | . 4 1 2 2 16 3 5 . 1 2 2 1 2 . 9 1 1 1 1 2 1 . 1 1 1 3 . Failed 57 | . 8 . . 3 8 1 1 4 2 3 3 1 . 2 8 2 . 6 . . . 2 1 1 . 1 . Catastrophic 10 | . 1 . . . 1 . 1 1 . 1 . 1 . 1 . . . 1 . . . . 1 1 . . . Database Lockouts 1 | . 1 . . . . . . . . . . . . . . . . . . . . . . . . . . Manual 57 | . 13 . 1 4 15 . 3 . 2 . 4 . 1 . 13 . . . . . . . 1 . . . . Terminals 87 | . 13 . . 4 16 4 2 4 1 5 3 2 . 2 11 3 . 7 . 2 . 2 . 2 . 4 . Fabricators 2 | . . . . . . . 2 . . . . . . . . . . . . . . . . . . . . Repair Stations 7 | . . . . . 4 . . . . . . . . . 3 . . . . . . . . . . . . Recycling Units . | . . . . . . . . . . . . . . . . . . . . . . . . . . . . Scanalyzers 2 | . . . . . 2 . . . . . . . . . . . . . . . . . . . . . . Garrison Access 19 | . . . . . 2 . 2 . 2 . 2 . 2 . 3 . 1 . 1 . 1 . 2 . 1 . . Terminal Hacks 27 | . 2 1 2 2 3 3 . . . 2 . 1 . . 3 1 . 1 . 2 . . . 1 . 3 . Record 1 | . . . 1 . . . . . . . . . . . . . . . . . . . . . . . . Part Schematic 1 | . 1 . . . . . . . . . . . . . . . . . . . . . . . . . . Robot Analysis 3 | . 1 . . 1 1 . . . . . . . . . . . . . . . . . . . . . . Open Door 6 | . . 1 . 1 . 1 . . . . . . . . . . . 1 . 1 . . . . . 1 . Emergency Access Points 6 | . . . . . . 1 . . . 1 . . . . . 1 . . . 1 . . . 1 . 1 . Terminal Index 2 | . . . . . 1 . . . . . . . . . 1 . . . . . . . . . . . . Unreport Threat 2 | . . . . . . . . . . . . . . . 2 . . . . . . . . . . . . Locate Traps 1 | . . . . . 1 . . . . . . . . . . . . . . . . . . . . . . Garrison Registry 4 | . . . . . . 1 . . . 1 . 1 . . . . . . . . . . . . . 1 . EX-Prototype ID Bank 1 | . . . 1 . . . . . . . . . . . . . . . . . . . . . . . . Fabricator Hacks 2 | . . . . . . . 2 . . . . . . . . . . . . . . . . . . . . Network Status 1 | . . . . . . . 1 . . . . . . . . . . . . . . . . . . . . Build 1 | . . . . . . . 1 . . . . . . . . . . . . . . . . . . . . Repair Station Hacks 7 | . . . . . 4 . . . . . . . . . 3 . . . . . . . . . . . . Scan Component 4 | . . . . . 2 . . . . . . . . . 2 . . . . . . . . . . . . Repair 3 | . . . . . 2 . . . . . . . . . 1 . . . . . . . . . . . . Recycling Unit Hacks . | . . . . . . . . . . . . . . . . . . . . . . . . . . . . Scanalyzer 2 | . . . . . 2 . . . . . . . . . . . . . . . . . . . . . . Insert Component 1 | . . . . . 1 . . . . . . . . . . . . . . . . . . . . . . Analyze 1 | . . . . . 1 . . . . . . . . . . . . . . . . . . . . . . Garrison Access Hacks 11 | . . . . . 1 . 1 . 1 . 1 . 1 . 1 . 1 . 1 . 1 . 1 . 1 . . Unlock Access 11 | . . . . . 1 . 1 . 1 . 1 . 1 . 1 . 1 . 1 . 1 . 1 . 1 . . Unauthorized Hacks 14 | . 2 . . . 6 . 2 . . . 1 . 1 . 2 . . . . . . . . . . . . Terminals 10 | . 2 . . . 5 . 1 . . . . . . . 2 . . . . . . . . . . . . Botnet 7 | . 1 . . . 4 . 1 . . . . . . . 1 . . . . . . . . . . . . Disrupt 1 | . 1 . . . . . . . . . . . . . . . . . . . . . . . . . . Operators 2 | . . . . . 1 . . . . . . . . . 1 . . . . . . . . . . . . Fabricators . | . . . . . . . . . . . . . . . . . . . . . . . . . . . . Repair Stations . | . . . . . . . . . . . . . . . . . . . . . . . . . . . . Recycling Units . | . . . . . . . . . . . . . . . . . . . . . . . . . . . . Scanalyzers . | . . . . . . . . . . . . . . . . . . . . . . . . . . . . Garrison Access 4 | . . . . . 1 . 1 . . . 1 . 1 . . . . . . . . . . . . . . Eject 4 | . . . . . 1 . 1 . . . 1 . 1 . . . . . . . . . . . . . . Data Cores Recovered 1 | . . . . . 1 . . . . . . . . . . . . . . . . . . . . . . Used . | . . . . . . . . . . . . . . . . . . . . . . . . . . . . Hacking Detections 42 | . 5 . . 1 8 . 2 2 2 2 2 1 1 1 4 1 1 3 1 . . 1 1 1 1 1 . Full Trace Events 3 | . 1 . . . 1 . . 1 . . . . . . . . . . . . . . . . . . . Feedback Events 1 | . . . . . 1 . . . . . . . . . . . . . . . . . . . . . . Corruption 1 | . . . . . 1 . . . . . . . . . . . . . . . . . . . . . . Feedback Blocked . | . . . . . . . . . . . . . . . . . . . . . . . . . . . . Robot Schematics Acquired . | . . . . . . . . . . . . . . . . . . . . . . . . . . . . Robots Built . | . . . . . . . . . . . . . . . . . . . . . . . . . . . . Authchips . | . . . . . . . . . . . . . . . . . . . . . . . . . . . . Time . | . . . . . . . . . . . . . . . . . . . . . . . . . . . . Total Robot Build Rating . | . . . . . . . . . . . . . . . . . . . . . . . . . . . . Part Schematics Acquired 2 | . 1 . . . 1 . . . . . . . . . . . . . . . . . . . . . . Parts Built 2 | . . . . . . . 2 . . . . . . . . . . . . . . . . . . . . Authchips . | . . . . . . . . . . . . . . . . . . . . . . . . . . . . Time 117 | . . . . . . . 117 . . . . . . . . . . . . . . . . . . . . Total Part Build Rating 14 | . . . . . . . 14 . . . . . . . . . . . . . . . . . . . . Parts Repaired 3 | . . . . . 2 . . . . . . . . . 1 . . . . . . . . . . . . Time 96 | . . . . . 64 . . . . . . . . . 32 . . . . . . . . . . . . Parts Recycled . | . . . . . . . . . . . . . . . . . . . . . . . . . . . . Recycled Matter . | . . . . . . . . . . . . . . . . . . . . . . . . . . . . Retrieved Matter . | . . . . . . . . . . . . . . . . . . . . . . . . . . . . Retrieved Components . | . . . . . . . . . . . . . . . . . . . . . . . . . . . . Parts Scanalyzed 1 | . . . . . 1 . . . . . . . . . . . . . . . . . . . . . . Part Schematics Acquired 1 | . . . . . 1 . . . . . . . . . . . . . . . . . . . . . . Parts Damaged . | . . . . . . . . . . . . . . . . . . . . . . . . . . . . Bothacking | -11 -10 -10 -10 -9 -8 -8 -7 -7 -7 -7 -6 -6 -5 -5 -5 -5 -4 -4 -3 -3 -3 -3 -2 -2 -1 -1 -1 ------------ Run | Jun Mat Min Exi Min Mat Gar Fac Gar Fac Gar Fac Gar Fac Gar Fac Gar Fac Gar Res Gar Res Gar Res Gar Acc Gar Acc Used RIF Installer 11 | . . . . . . 1 . 1 . 1 . 1 . 1 . 1 . 1 . 1 . 1 . 1 . 1 . Coupler Efficiency 1 | . . . . . . . . . . . . . . . . . . . . . . . . 1 . . . Hotswap 1 | . . . . . . . . . . 1 . . . . . . . . . . . . . . . . . Code Merge 1 | . . . . . . . . . . . . . . . . . . . . . . . . . . 1 . Robot Detection 1 | . . . . . . . . . . . . . . . . . . . . . . 1 . . . . . Watcher Feeds 1 | . . . . . . . . . . . . . . 1 . . . . . . . . . . . . . Patrol Navigation 1 | . . . . . . . . . . . . 1 . . . . . . . . . . . . . . . Alert ID Control 1 | . . . . . . . . . . . . . . . . . . . . 1 . . . . . . . Structural Interface 1 | . . . . . . . . . . . . . . . . 1 . . . . . . . . . . . Program Shield 1 | . . . . . . . . 1 . . . . . . . . . . . . . . . . . . . Autoassimilate 1 | . . . . . . . . . . . . . . . . . . 1 . . . . . . . . . Robots Hacked 176 | . . . . . . . 3 . 4 2 3 11 4 4 8 6 6 22 3 18 2 16 9 5 . 30 20 Non-combat 19 | . . . . . . . 2 . . . . . 1 . 3 . 1 . 1 . . 1 2 . . . 8 Combat 157 | . . . . . . . 1 . 4 2 3 11 3 4 5 6 5 22 2 18 2 15 7 5 . 30 12 Autoassimilated 14 | . . . . . . . . . . . . . . . . . . 1 . . . 3 2 2 . 5 1 Robot Hacks Applied 211 | . . . . . . . 7 . 4 2 3 12 5 4 13 6 7 22 12 22 2 14 10 4 . 25 37 parse_system 9 | . . . . . . . . . . . . . . . . . 1 . . 2 . 1 2 . . 1 2 no_distress 1 | . . . . . . . . . . . . . . . 1 . . . . . . . . . . . . drop_inventory 4 | . . . . . . . . . . . . . . . 1 . . . . . . . 1 . . . 2 ignore_parts 1 | . . . . . . . . . . . . . . . . . . . . . . . 1 . . . . purge_threat 29 | . . . . . . . 2 . . . . . . . 4 . . . 8 . . . . . . . 15 locate_traps 1 | . . . . . . . 1 . . . . . . . . . . . . . . . . . . . . block_reporting 1 | . . . . . . . . . . . . . 1 . . . . . . . . . . . . . . summon_haulers 1 | . . . . . . . 1 . . . . . . . . . . . . . . . . . . . . clear_repairs 1 | . . . . . . . . . . . . . . . . . . . . . . . . . . . 1 map_route 3 | . . . . . . . . . . . . . . . . . . . . . . . . . . . 3 find_garrison 7 | . . . . . . . 1 . . . 1 . 1 . 1 . 1 . 1 . . . 1 . . . . reboot_propulsion 2 | . . . . . . . . . . . . . . . . . . . . 2 . . . . . . . tweak_propulsion 1 | . . . . . . . . . . . . . . . . . . . . . . 1 . . . . . scatter_targeting 3 | . . . . . . . . . 1 . . . . . . . . . . . . . . 2 . . . mark_system 2 | . . . . . . . . . . . . . . . . . . 1 . 1 . . . . . . . disrupt_area 3 | . . . . . . . . . . . . . . . . . . 2 . . . . . 1 . . . amplify_resonance 3 | . . . . . . . . . . . . . . . . . . 1 . . . . . . . 2 . disable_weapons 4 | . . . . . . . . . . . . . . . . . . . . . . 3 . . . . 1 overwrite_iff 21 | . . . . . . . . . . . . 3 . . . . 3 6 . 3 . 1 1 . . 4 . streamctrl_high 1 | . . . . . . . . . . . . 1 . . . . . . . . . . . . . . . formatsys_low 3 | . . . . . . . 1 . . . . . . . . . . . 1 . . . 1 . . . . formatsys_high 110 | . . . . . . . 1 . 3 2 2 8 3 4 6 6 2 12 2 14 2 8 3 1 . 18 13 Relay Couplers Released 123 | . . . . . 4 9 3 . . 8 4 9 4 5 2 9 . 14 . 11 . 14 . 13 . 14 . Ejected 15 | . . . . . 4 . 3 . . . 4 . 4 . . . . . . . . . . . . . . Machine Destruction 104 | . . . . . . 5 . . . 8 . 9 . 5 2 9 . 14 . 11 . 14 . 13 . 14 . Programmers 4 | . . . . . . 4 . . . . . . . . . . . . . . . . . . . . . Attached 40 | . . . . . . . 3 . 3 1 1 2 2 . 2 1 2 6 1 4 . 5 1 1 . 3 2 Merged Code Value 104 | . . . . . . . . . . . . . . . . . . . . . . . . . . 77 27 Fabnet Peak Effective % . | . . . . . . . . . . . . . . . . . . . . . . . . . . . . Robots Rewired 25 | . . . . . . 2 . . . . 1 . . . . 1 . 3 . 10 . 3 . . . 5 . Allies Hacked 1 | . . . . . . . . . . . . . . . . . . . . . . . . 1 . . . Hacks Repelled . | . . . . . . . . . . . . . . . . . . . . . . . . . . . . Allies | -11 -10 -10 -10 -9 -8 -8 -7 -7 -7 -7 -6 -6 -5 -5 -5 -5 -4 -4 -3 -3 -3 -3 -2 -2 -1 -1 -1 -------- Run | Jun Mat Min Exi Min Mat Gar Fac Gar Fac Gar Fac Gar Fac Gar Fac Gar Fac Gar Res Gar Res Gar Res Gar Acc Gar Acc Total Allies 180 | . . 4 . 1 . 2 2 . 3 2 3 11 3 4 6 7 5 22 3 27 2 15 7 3 . 34 14 Largest Group 18 | . . 3 2 2 1 2 2 1 3 4 3 5 5 5 3 8 6 12 12 15 14 18 15 15 2 13 13 Highest-Rated Group 886 | . . 63 32 47 16 40 58 32 85 117 96 169 183 183 107 391 333 550 577 768 743 850 757 768 123 886 732 Highest-Rated Ally 178 | . . 31 16 31 16 20 32 32 32 32 32 47 49 49 49 148 148 58 64 64 64 65 65 69 65 95 178 Total Orders 160 | . . 2 . . . . 2 3 . 9 8 15 2 8 7 14 1 17 2 15 . 16 3 13 . 11 12 STAY 88 | . . 1 . . . . 1 2 . 4 4 9 1 5 5 8 1 9 1 9 . 8 1 7 . 7 5 FOLLOW 71 | . . 1 . . . . 1 1 . 5 4 6 1 3 2 6 . 8 1 6 . 8 1 6 . 4 7 DROP 1 | . . . . . . . . . . . . . . . . . . . . . . . 1 . . . . Ally Attacks 1300 | . . 70 . 18 4 14 11 4 2 10 36 53 11 43 42 48 59 64 25 129 16 185 24 95 . 188 149 Total Damage 43208 | . . 807 . 207 47 344 272 98 76 277 1082 1478 347 1282 1108 1102 1666 1272 571 4354 679 6325 781 3856 . 7203 7974 Kills 240 | . . 5 . 1 1 3 5 1 . 3 9 14 2 8 7 11 20 5 3 21 2 35 3 13 . 30 38 Allies Corrupted 7 | . . . . . . . . . . . . 1 . . . . . . 2 1 . . . . . 1 2 Allies Melted 1 | . . . . . . . . . . . . . . . . . . . . 1 . . . . . . . Intel | -11 -10 -10 -10 -9 -8 -8 -7 -7 -7 -7 -6 -6 -5 -5 -5 -5 -4 -4 -3 -3 -3 -3 -2 -2 -1 -1 -1 ------- Run | Jun Mat Min Exi Min Mat Gar Fac Gar Fac Gar Fac Gar Fac Gar Fac Gar Fac Gar Res Gar Res Gar Res Gar Acc Gar Acc Robot Analysis Total 3 | . 1 . . 1 1 . . . . . . . . . . . . . . . . . . . . . . Derelict Logs Recovered 3 | . . 1 . 2 . . . . . . . . . . . . . . . . . . . . . . . Drone Launches . | . . . . . . . . . . . . . . . . . . . . . . . . . . . . Drone Recoveries . | . . . . . . . . . . . . . . . . . . . . . . . . . . . . Exploration | -11 -10 -10 -10 -9 -8 -8 -7 -7 -7 -7 -6 -6 -5 -5 -5 -5 -4 -4 -3 -3 -3 -3 -2 -2 -1 -1 -1 ------------- Run | Jun Mat Min Exi Min Mat Gar Fac Gar Fac Gar Fac Gar Fac Gar Fac Gar Fac Gar Res Gar Res Gar Res Gar Acc Gar Acc Turns Passed 35265 | 79 1690 1599 789 1475 1942 1807 2198 1691 738 1565 648 2090 580 1755 1709 1410 382 1799 237 1462 646 1578 260 1620 414 2017 1085 Spaces Moved 16086 | 45 723 612 329 554 722 593 740 621 270 588 280 788 235 759 874 770 212 897 138 873 417 911 117 832 234 1024 928 Core 27 | 2 . . . . . . . . . . . . . . . . . . . . . . . . . . 25 Treads 15540 | 43 723 612 329 554 722 593 740 621 270 588 280 788 235 759 874 770 212 897 138 873 417 911 117 832 234 1024 384 Legs . | . . . . . . . . . . . . . . . . . . . . . . . . . . . . Wheels . | . . . . . . . . . . . . . . . . . . . . . . . . . . . . Hover . | . . . . . . . . . . . . . . . . . . . . . . . . . . . . Flight 519 | . . . . . . . . . . . . . . . . . . . . . . . . . . . 519 Fastest Speed 5 | 50 160 240 240 240 160 245 245 245 247 245 166 166 239 156 156 155 161 145 145 145 145 145 150 150 155 155 5 Average Speed 188 | 155 211 240 240 240 223 246 245 246 247 246 204 238 239 198 157 158 161 153 151 145 145 154 150 153 155 159 88 Slowest Speed 323 | 160 240 240 240 240 247 247 323 247 247 247 246 246 239 240 158 161 161 161 152 145 145 155 150 155 155 160 250 Overloaded Moves 68 | . . . . . . . . . . . . . . . . . . . . . . . . . . . 68 Propulsion Burnouts . | . . . . . . . . . . . . . . . . . . . . . . . . . . . . Robots Hopped 2 | . . . . . . . . . . . . . . . . . . . . . . . . . . . 2 Cave-ins Triggered . | . . . . . . . . . . . . . . . . . . . . . . . . . . . . Exploration Rate (%) 54 | 3 96 97 71 94 71 79 25 93 10 54 11 78 12 67 34 88 10 94 5 91 11 92 7 87 5 93 41 Regions Visited 27 Branch Regions 3 Pre-discovered Areas 2 | . . . 1 1 . . . . . . . . . . . . . . . . . . . . . . . Known Exits Taken 11 | . . . . . 1 . 1 . 1 . 1 . 1 . 1 . 1 . 1 . 1 . 1 . 1 . . Unknown Exits Taken 5 | 1 1 1 1 1 . . . . . . . . . . . . . . . . . . . . . . . Scrap Searched 2 | . . 1 . 1 . . . . . . . . . . . . . . . . . . . . . . . Spaces Dug 32 | . . . . . . . 2 . . . 1 . . 3 11 . . . . . . . 2 . . . 13 Terrain Destroyed 410 | . . . . . . . 3 147 . 3 1 1 1 17 55 7 . 13 . . . 2 3 70 2 4 81 Melee . | . . . . . . . . . . . . . . . . . . . . . . . . . . . . Projectile 74 | . . . . . . . 3 . . 1 1 1 1 6 25 7 . 11 . . . 2 3 6 2 4 1 AOE 336 | . . . . . . . . 147 . 2 . . . 11 30 . . 2 . . . . . 64 . . 80 Terrain Rammed . | . . . . . . . . . . . . . . . . . . . . . . . . . . . . Walls Destroyed . | . . . . . . . . . . . . . . . . . . . . . . . . . . . . Machines Disabled . | . . . . . . . . . . . . . . . . . . . . . . . . . . . . Actions | -11 -10 -10 -10 -9 -8 -8 -7 -7 -7 -7 -6 -6 -5 -5 -5 -5 -4 -4 -3 -3 -3 -3 -2 -2 -1 -1 -1 --------- Run | Jun Mat Min Exi Min Mat Gar Fac Gar Fac Gar Fac Gar Fac Gar Fac Gar Fac Gar Res Gar Res Gar Res Gar Acc Gar Acc Total 19771 | 51 814 701 330 656 936 803 1057 724 316 659 343 923 248 936 1116 933 249 1234 163 1036 447 1058 194 1083 278 1363 1120 Wait 1713 | . 22 62 . 61 116 105 235 49 15 6 34 18 . 93 125 96 8 184 7 60 1 51 46 121 16 157 25 Move 16061 | 44 722 611 328 553 721 592 739 620 270 587 279 787 234 758 874 769 212 896 138 872 417 910 117 831 234 1023 923 Hop 2 | . . . . . . . . . . . . . . . . . . . . . . . . . . . 2 Pick Up 310 | 1 15 5 1 5 17 10 9 . 2 10 6 10 2 6 11 10 9 41 1 15 7 23 3 28 6 41 16 Fast Attach 112 | 6 5 . . 1 9 3 7 2 1 1 1 7 . 6 9 6 . 7 1 3 1 7 . 3 4 3 19 Attach 129 | . 1 1 . 2 5 8 4 1 2 9 3 4 3 1 7 5 4 12 1 6 2 4 3 13 4 11 13 Detach 23 | . 1 . . . 1 1 . . 1 1 1 . . . . 3 . 2 . 2 . 2 . 1 1 3 3 Swap 127 | . 5 1 . 3 1 5 12 9 9 9 3 9 2 11 11 3 2 5 1 4 1 5 2 4 . 4 6 Drop 184 | . 7 . 1 6 15 8 9 2 1 4 4 11 . 9 10 11 2 10 2 6 4 15 3 7 8 18 11 Fire 980 | . 36 20 . 20 50 53 38 33 12 28 11 52 7 45 68 28 9 69 12 68 14 37 19 51 5 95 100 Melee 36 | . . . . . . 14 . . . . . . . . . . . . . . . . . 22 . . . Ram . | . . . . . . . . . . . . . . . . . . . . . . . . . . . . Kick . | . . . . . . . . . . . . . . . . . . . . . . . . . . . . Crush 16 | . . 1 . 5 1 . . . 1 . 1 . . . . . 2 1 . . . . . . . 3 1 Escape Stasis 50 | . . . . . . 4 4 8 . 2 . 24 . 7 . . . . . . . 1 . . . . . Rewire 28 | . . . . . . . . . 2 2 . 1 . . 1 2 1 7 . . . 3 1 2 . 5 1 Trap . | . . . . . . . . . . . . . . . . . . . . . . . . . . . . Miscellaneous . | . . . . . . . . . . . . . . . . . . . . . . . . . . . . Route ------- -11/Junkyard -10/Materials (discovered 4 exits: [*Mat x3] / *Min) -10/Mines (discovered 3 exits: [*Mat x2] / *Exi) -10/Exiles (discovered 2 exits: *Min x2) -9/Mines (discovered 2 exits: *Mat x2) -8/Materials (discovered 3 exits: *Fac x2 / Gar) -8/Garrison (discovered 3 exits: *Fac x3) -7/Factory (discovered 2 exits: [*Low] / Gar) -7/Garrison (discovered 3 exits: *Fac x3) -7/Factory (discovered 3 exits: *Fac / [*Low] / Gar) -7/Garrison (discovered 3 exits: *Fac x3) -6/Factory -6/Garrison (discovered 3 exits: *Fac x3) -5/Factory (discovered 2 exits: [*Ext] / Gar) -5/Garrison (discovered 3 exits: *Fac x3) -5/Factory (discovered 3 exits: *Fac x2 / Gar) -5/Garrison (discovered 3 exits: *Fac x3) -4/Factory -4/Garrison (discovered 3 exits: *Res x3) -3/Research -3/Garrison (discovered 3 exits: *Res x3) -3/Research (discovered 2 exits: *Res / Gar) -3/Garrison (discovered 4 exits: *Res x3 / [*Res]) -2/Research -2/Garrison (discovered 3 exits: *Acc x3) -1/Access -1/Garrison (discovered 4 exits: [*Acc x4]) -1/Access To Epsilon Eridani History --------- Turn | Location | Event 26 | -11/Junkyard | Discovered new exit (range 16) 80 | -11/Junkyard | Entered Materials 127 | -10/Materials | Discovered new exit (range 15) 177 | -10/Materials | Met 8R-AWN 308 | -10/Materials | Build established: Mutant 445 | -10/Materials | Discovered new exit (range 3) 799 | -10/Materials | Discovered new exit (range 16) 1175 | -10/Materials | Central database locked down 1549 | -10/Materials | Discovered new exit (range 6) 1770 | -10/Materials | Entered Mines 1771 | -10/Mines | Assembled infested the area 1773 | -10/Mines | Followed 8R-AWN into the Mines 1839 | -10/Mines | Assisted by bots powering up and referring to "LRC-V3" 1936 | -10/Mines | Learned 2 Materials zone layouts 2288 | -10/Mines | Found a hidden stash of uninstalled traps 2457 | -10/Mines | Met a Derelict who couldn't figure out how to use a Trap Extractor 2711 | -10/Mines | Discovered new exit (range 4) 2777 | -10/Mines | Discovered new exit (range 9) 2941 | -10/Mines | Discovered new exit (range 5) 3045 | -10/Mines | Received a Mining Laser from a helpful Derelict 3369 | -10/Mines | Entered Exiles 3369 | -10/Exiles | Accompanied by 2 allies 3405 | -10/Exiles | Discovered new exit (range 15) 3434 | -10/Exiles | Welcomed by 8R-AWN 3470 | -10/Exiles | Met EX-HEX 3564 | -10/Exiles | Met EX-DEC 3573 | -10/Exiles | Learned location of Zion (-7) 3818 | -10/Exiles | Met EX-BIN 3845 | -10/Exiles | Aligned with FarCom system 3847 | -10/Exiles | Given EX-Vault access code 3902 | -10/Exiles | Opened EX-Vault 3929 | -10/Exiles | Found Lightpack 2.0 3978 | -10/Exiles | Warned to stay clear of 0b10 Research branches 4137 | -10/Exiles | Discovered new exit (range 11) 4158 | -10/Exiles | Left Exiles lab with Lightpack 2.0 4158 | -10/Exiles | Entered Mines 4158 | -9/Mines | Accompanied by 2 allies 4171 | -9/Mines | Met a Derelict shopkeep closing up shop 4477 | -9/Mines | Learned location of 1 exit from Materials 4494 | -9/Mines | Discovered new exit (range 5) 4717 | -9/Mines | A weapon hastily lodged in a ceiling crevice suddenly fell to the ground 4751 | -9/Mines | Learned location of Storage (-7) 5233 | -9/Mines | Discovered new exit (range 9) 5415 | -9/Mines | Escorted by a lone wolf Derelict 5633 | -9/Mines | Entered Materials 5633 | -8/Materials | Accompanied by 1 ally 5633 | -8/Materials | Evolved 4 slots: Propulsion x2, Utility x1, Weapon x1 5634 | -8/Materials | Identified exit to Factory 6070 | -8/Materials | Build established: Skirmisher 6295 | -8/Materials | Repaired Adv. Treads 6321 | -8/Materials | Repaired Lgt. Treads 6381 | -8/Materials | Discovered exit to Factory (range 13) 7571 | -8/Materials | Identified exit to Garrison 7575 | -8/Materials | Entered Garrison 7624 | -8/Garrison | Triggered checkpoint 8078 | -8/Garrison | Triggered checkpoint 8142 | -8/Garrison | Build established: Mutant 8193 | -8/Garrison | Garrison Relay disabled 8296 | -8/Garrison | Triggered checkpoint 8498 | -8/Garrison | Discovered exit to Factory (range 10) 8974 | -8/Garrison | Build established: Skirmisher 8994 | -8/Garrison | Triggered checkpoint 9083 | -8/Garrison | Discovered exit to Factory (range 8) 9137 | -8/Garrison | Discovered exit to Factory (range 47) 9137 | -8/Garrison | Discovered exit to Factory (range 49) 9137 | -8/Garrison | Discovered exit to Factory (range 6) 9224 | -8/Garrison | Triggered checkpoint 9297 | -8/Garrison | Installed Relay Interface Framework 9382 | -8/Garrison | Entered Factory 9382 | -7/Factory | Evolved 2 slots: Utility x2 9597 | -7/Factory | Build established: Bothacker-Skirmisher 9820 | -7/Factory | Discovered new exit (range 7) 9902 | -7/Factory | Build established: Bothacker-Mutant 10085 | -7/Factory | Fabricated Imp. Force Field (x2) 10217 | -7/Factory | Build established: Bothacker-Skirmisher 11320 | -7/Factory | Garrison activated, responded to threat 11431 | -7/Factory | Identified exit to Garrison 11580 | -7/Factory | Entered Garrison 11580 | -7/Garrison | Accompanied by 1 ally 11632 | -7/Garrison | Triggered checkpoint 11767 | -7/Garrison | Phase Generator disabled 11826 | -7/Garrison | Build established: Bothacker-Mutant 11954 | -7/Garrison | Triggered checkpoint 12064 | -7/Garrison | Discovered new exit (range 15) 12088 | -7/Garrison | Expanded RIF knowledge: Program Shield 12348 | -7/Garrison | Triggered checkpoint 12358 | -7/Garrison | Build established: Bothacker-Skirmisher 12667 | -7/Garrison | Discovered new exit (range 13) 12882 | -7/Garrison | Build established: Bothacker-Mutant 12936 | -7/Garrison | Triggered checkpoint 13030 | -7/Garrison | Discovered new exit (range 15) 13271 | -7/Garrison | Entered Factory 13884 | -7/Factory | Discovered new exit (range 3) 13887 | -7/Factory | Discovered new exit (range 15) 14009 | -7/Factory | Identified exit to Garrison 14009 | -7/Factory | Entered Garrison 14009 | -7/Garrison | Accompanied by 3 allies 14142 | -7/Garrison | Triggered checkpoint 14207 | -7/Garrison | Garrison Relay disabled 14461 | -7/Garrison | Triggered checkpoint 14569 | -7/Garrison | Discovered new exit (range 66) 14569 | -7/Garrison | Discovered new exit (range 39) 14569 | -7/Garrison | Discovered new exit (range 67) 14796 | -7/Garrison | Triggered checkpoint 15260 | -7/Garrison | Triggered checkpoint 15274 | -7/Garrison | Expanded RIF knowledge: Hotswap 15318 | -7/Garrison | Garrison Relay disabled 15574 | -7/Garrison | Entered Factory 15574 | -6/Factory | Accompanied by 1 ally 15574 | -6/Factory | Evolved 2 slots: Propulsion x1, Utility x1 16201 | -6/Factory | Garrison activated, responded to threat 16218 | -6/Factory | Identified exit to Garrison 16222 | -6/Factory | Entered Garrison 16222 | -6/Garrison | Accompanied by 3 allies 16237 | -6/Garrison | Expanded RIF knowledge: Patrol Navigation 16318 | -6/Garrison | Triggered checkpoint 16386 | -6/Garrison | Garrison Relay disabled 16497 | -6/Garrison | Build established: Botlord-Mutant 16550 | -6/Garrison | Spotted B-75 Beast 16572 | -6/Garrison | Triggered checkpoint 16674 | -6/Garrison | Destroyed B-75 Beast 17006 | -6/Garrison | Discovered new exit (range 11) 17042 | -6/Garrison | Triggered checkpoint 17072 | -6/Garrison | Garrison Relay disabled 17270 | -6/Garrison | Triggered checkpoint 17354 | -6/Garrison | Discovered new exit (range 14) 17418 | -6/Garrison | Triggered checkpoint 17673 | -6/Garrison | Discovered new exit (range 76) 17673 | -6/Garrison | Discovered new exit (range 45) 17673 | -6/Garrison | Discovered new exit (range 34) 17785 | -6/Garrison | Found Relay Coupler [Proto] 18248 | -6/Garrison | Triggered checkpoint 18312 | -6/Garrison | Entered Factory 18312 | -5/Factory | Accompanied by 3 allies 18312 | -5/Factory | Evolved 2 slots: Utility x2 18550 | -5/Factory | Discovered new exit (range 15) 18888 | -5/Factory | Identified exit to Garrison 18892 | -5/Factory | Entered Garrison 18892 | -5/Garrison | Accompanied by 5 allies 18940 | -5/Garrison | Triggered checkpoint 19112 | -5/Garrison | Triggered checkpoint 19235 | -5/Garrison | Discovered new exit (range 8) 19396 | -5/Garrison | Build established: Botlord-Tank 19610 | -5/Garrison | Heavy support dispatched to Factory 19699 | -5/Garrison | Discovered new exit (range 8) 19782 | -5/Garrison | Triggered checkpoint 20010 | -5/Garrison | Spotted B-75 Beast 20166 | -5/Garrison | Triggered checkpoint 20195 | -5/Garrison | Discovered new exit (range 10) 20232 | -5/Garrison | Triggered checkpoint 20344 | -5/Garrison | Heavy support dispatched to Factory 20468 | -5/Garrison | Build established: Botlord-Mutant 20506 | -5/Garrison | Expanded RIF knowledge: Watcher Feeds 20570 | -5/Garrison | Garrison Relay disabled 20647 | -5/Garrison | Entered Factory 20647 | -5/Factory | Accompanied by 2 allies 20856 | -5/Factory | Repaired Imp. Treads 21432 | -5/Factory | Discovered new exit (range 5) 22140 | -5/Factory | Discovered new exit (range 33) 22200 | -5/Factory | System corruption reached 10% 22356 | -5/Factory | Identified exit to Garrison 22356 | -5/Factory | Entered Garrison 22356 | -5/Garrison | Accompanied by 1 ally 22412 | -5/Garrison | Triggered checkpoint 22457 | -5/Garrison | Garrison Relay disabled 22532 | -5/Garrison | Triggered checkpoint 22654 | -5/Garrison | Triggered checkpoint 22678 | -5/Garrison | Triggered checkpoint 22711 | -5/Garrison | Discovered new exit (range 14) 22768 | -5/Garrison | Triggered checkpoint 22791 | -5/Garrison | Garrison Relay disabled 22831 | -5/Garrison | Garrison Relay disabled 23119 | -5/Garrison | Expanded RIF knowledge: Structural Interface 23188 | -5/Garrison | Discovered new exit (range 10) 23233 | -5/Garrison | Rewired B-90 Cyclops 23350 | -5/Garrison | Triggered checkpoint 23490 | -5/Garrison | Triggered checkpoint 23504 | -5/Garrison | Discovered new exit (range 14) 23766 | -5/Garrison | Entered Factory 23766 | -4/Factory | Accompanied by 6 allies 23766 | -4/Factory | Evolved 2 slots: Power x1, Utility x1 24016 | -4/Factory | First assault squad dispatched 24044 | -4/Factory | Garrison activated, responded to threat 24148 | -4/Factory | Identified exit to Garrison 24148 | -4/Factory | Entered Garrison 24164 | -4/Garrison | Expanded RIF knowledge: Autoassimilate 24258 | -4/Garrison | Triggered checkpoint 24272 | -4/Garrison | Garrison Relay disabled 24358 | -4/Garrison | Triggered checkpoint 24494 | -4/Garrison | Triggered checkpoint 24623 | -4/Garrison | Lost 3 parts (1p1n1w) 24706 | -4/Garrison | Garrison Relay disabled 24835 | -4/Garrison | Discovered new exit (range 11) 24882 | -4/Garrison | Triggered checkpoint 25220 | -4/Garrison | Discovered new exit (range 5) 25316 | -4/Garrison | Triggered checkpoint 25468 | -4/Garrison | Triggered checkpoint 25522 | -4/Garrison | Triggered checkpoint 25582 | -4/Garrison | Garrison Relay disabled 25604 | -4/Garrison | Triggered checkpoint 25725 | -4/Garrison | Discovered new exit (range 8) 25947 | -4/Garrison | Entered Research 25947 | -3/Research | Accompanied by 11 allies 25947 | -3/Research | Evolved 2 slots: Utility x2 26184 | -3/Research | Identified exit to Garrison 26184 | -3/Research | Entered Garrison 26184 | -3/Garrison | Accompanied by 11 allies 26248 | -3/Garrison | Triggered checkpoint 26264 | -3/Garrison | Garrison Relay disabled 26332 | -3/Garrison | Garrison Relay disabled 26515 | -3/Garrison | Spotted B-86 Titan 26518 | -3/Garrison | Triggered checkpoint 26523 | -3/Garrison | Triggered checkpoint 26544 | -3/Garrison | Triggered checkpoint 26549 | -3/Garrison | Allies destroyed B-86 Titan 26551 | -3/Garrison | Triggered checkpoint 26650 | -3/Garrison | Triggered checkpoint 26675 | -3/Garrison | Discovered new exit (range 10) 26834 | -3/Garrison | Found Relay Coupler [Proto] 26838 | -3/Garrison | Found Relay Coupler [Proto] 26991 | -3/Garrison | Found Unknown Device 26991 | -3/Garrison | Identified Adv. Force Booster 27026 | -3/Garrison | Discovered new exit (range 13) 27132 | -3/Garrison | Triggered checkpoint 27161 | -3/Garrison | Expanded RIF knowledge: Alert ID Control 27213 | -3/Garrison | Garrison Relay disabled 27475 | -3/Garrison | Discovered new exit (range 10) 27646 | -3/Garrison | Entered Research 27646 | -3/Research | Accompanied by 12 allies 27682 | -3/Research | Discovered new exit (range 11) 28291 | -3/Research | Identified exit to Garrison 28292 | -3/Research | Entered Garrison 28292 | -3/Garrison | Accompanied by 14 allies 28524 | -3/Garrison | Triggered checkpoint 28544 | -3/Garrison | Garrison Relay disabled 28704 | -3/Garrison | Triggered checkpoint 28709 | -3/Garrison | Triggered checkpoint 28712 | -3/Garrison | Triggered checkpoint 28876 | -3/Garrison | Triggered checkpoint 28982 | -3/Garrison | Triggered checkpoint 29024 | -3/Garrison | Garrison Relay disabled 29173 | -3/Garrison | Discovered new exit (range 11) 29184 | -3/Garrison | Triggered checkpoint 29202 | -3/Garrison | Discovered new exit (range 6) 29384 | -3/Garrison | Garrison Relay disabled 29426 | -3/Garrison | Triggered checkpoint 29451 | -3/Garrison | Discovered new exit (range 13) 29616 | -3/Garrison | Triggered checkpoint 29756 | -3/Garrison | Expanded RIF knowledge: Robot Detection 29817 | -3/Garrison | Discovered new exit (range 10) 29870 | -3/Garrison | Entered Research 29870 | -2/Research | Accompanied by 11 allies 29870 | -2/Research | Evolved 2 slots: Propulsion x1, Utility x1 30128 | -2/Research | Identified exit to Garrison 30130 | -2/Research | Entered Garrison 30130 | -2/Garrison | Accompanied by 14 allies 30218 | -2/Garrison | Triggered checkpoint 30324 | -2/Garrison | Garrison Relay disabled 30587 | -2/Garrison | Spotted B-90 Cyclops 30612 | -2/Garrison | Triggered checkpoint 30633 | -2/Garrison | Destroyed B-90 Cyclops 30640 | -2/Garrison | Triggered checkpoint 30651 | -2/Garrison | Triggered checkpoint 30654 | -2/Garrison | Destroyed 8 combat bots 30657 | -2/Garrison | Triggered checkpoint 30716 | -2/Garrison | Lost 9 parts (1n5u3w) 30930 | -2/Garrison | Build established: Hauler-Mutant 30940 | -2/Garrison | Garrison Relay disabled 30997 | -2/Garrison | Discovered new exit (range 11) 31257 | -2/Garrison | Discovered new exit (range 10) 31496 | -2/Garrison | Triggered checkpoint 31513 | -2/Garrison | Expanded RIF knowledge: Coupler Efficiency 31567 | -2/Garrison | Garrison Relay disabled 31720 | -2/Garrison | Discovered new exit (range 10) 31750 | -2/Garrison | Entered Access 31750 | -1/Access | Accompanied by 2 allies 31750 | -1/Access | Evolved 2 slots: Utility x2 32164 | -1/Access | Identified exit to Garrison 32164 | -1/Access | Entered Garrison 32328 | -1/Garrison | Build established: Botlord-Mutant 32553 | -1/Garrison | System corruption reached 10% 32586 | -1/Garrison | Triggered checkpoint 32598 | -1/Garrison | Discovered new exit (range 6) 32732 | -1/Garrison | Triggered checkpoint 32924 | -1/Garrison | Found embedded Infiltrators 32984 | -1/Garrison | Garrison Relay disabled 33073 | -1/Garrison | Spotted B-99 Colossus 33084 | -1/Garrison | Triggered checkpoint 33131 | -1/Garrison | Destroyed B-99 Colossus 33136 | -1/Garrison | Triggered checkpoint 33174 | -1/Garrison | Triggered checkpoint 33228 | -1/Garrison | Discovered new exit (range 12) 33240 | -1/Garrison | Expanded RIF knowledge: Code Merge 33330 | -1/Garrison | Triggered checkpoint 33363 | -1/Garrison | Garrison Relay disabled 33786 | -1/Garrison | Discovered new exit (range 11) 33828 | -1/Garrison | Triggered checkpoint 33830 | -1/Garrison | Discovered new exit (range 23) 33830 | -1/Garrison | Discovered new exit (range 49) 33830 | -1/Garrison | Discovered new exit (range 49) 33830 | -1/Garrison | Discovered new exit (range 39) 33936 | -1/Garrison | Triggered checkpoint 34102 | -1/Garrison | Garrison Relay disabled 34181 | -1/Garrison | Entered Access 34181 | -1/Access | Accompanied by 7 allies 34681 | -1/Access | First assault squad dispatched 34908 | -1/Access | Spotted B-99 Colossus 35013 | -1/Access | Allies destroyed B-99 Colossus 35035 | -1/Access | Lost 17 parts (2p6n5u4w) 35246 | -1/Access | Spotted B-99 Colossus 35246 | -1/Access | Spotted B-99 Colossus 35263 | -1/Access | Discovered new exit (range 5) 35266 | *** | Escaped! Last Messages --------------- 35252_ >> Watcher Feeds: Established visual feed link with W-44 Eye. 35254_ Knocked back. 35254_ Slug penetrates Sealed Heavy Doors. 35254_ Cld. Field Propulsion Drive destroyed. 35254_ Smartbomb Launcher destroyed. 35254_ Slug penetrates Sealed Heavy Doors. 35255_ Acquired 7 matter. 35258_ Identified Field Propulsion Array. 35258_ Knocked back. 35258_ Slug penetrates Sealed Heavy Doors. 35258_ Lightpack 2.0 destroyed. 35258_ Relay Coupler [Sentry] crushed and broken. 35258_ Relay Coupler [Duelist] crushed and broken. 35258_ Relay Coupler [Sentry] crushed and broken. 35258_ Penetrated by Slug. 35258_ Cld. Field Propulsion Drive destroyed. 35258_ Slug penetrates Sealed Barrier. 35259_ B-99 Colossus activates siege mode. 35263_ Main Access Shell breached. 35263_ EXIT=FOUND Map ----- +----------------------------------------------------+ | ?????????????????# # ? #????????? | | ##+#??????????????????# # """""" #????????? | | ##############?????# # """""" #????????? | | + #?????# # """""" #????????? | | ## #?????# # """""" #????????? | | ## #?????# # """""" #????????? | | ## "" #?????# % + #????????? | | ## "" #?????# # #????????? | | ## """" #?????# #########+####????????? | | ## """" #??#### ####????# #???????????? | | + """" #??# #????# #???????????? | | ## """" #??# #????#p#???????????? | | ## """" #??# h #????# #???????????? | | ## "" #??# #????# #???????????? | | ## #??# hBB #????# #???????????? | | ## #??# BB %BB #????# #???????????? | | ###+####+####??# BB %!%#????# #???????????? | | #?????#""""""""!"#????#h#??????????? | | #####?????????"%"?????#h####+###### | | """ #?????????"="?????# | | """"#?#""""""""*"#????# | | "F""#?# =!!=!%#????# | | ""#?# """"""|=#????## | | ! """#?# "!!#?????# ######## | | "" #?# " "" "!|#?????# ###### # | | """ """ #####?# " "@ "= #?????# # | | """T""" #?????# " " #?????# # | | #??######## #?????# """""" #?????# Y # | | ??????????# #?????# #?????# # | | ?#######??# #?????# #?????# H # | | ?# ?# #?????""""""""""""?????# # [ | | ?# !! ?# #?????#"" #?????#+## # | | ?# !! # #?????#"" #????????# # | | ?# ! # #?????#"" #????????# + | | ?# + #?????#T #????????# # | | ?# # #?????#"" #????????# # | | ?# # #?????#"" #???????## ######## | | ?#! ?# #######"" ######### #?????? | | ?# ?# k w t #?????? | | ?#######??# #?????? | | ??????????####+######################## = #?????? | | ??????????????????????????????????????######?????? | | ?????????????????????????????????????????????????? | | ???????""????????????????????????????????????????? | | ???????""????????????????????????????????????????? | | ???????"T????????????????????????????????????????? | | ???????""???"????????????????????????????????????? | | ???????""??"""???????????????????????????????????? | | ????????????"""??????????????????????????????????? | | ?????????????"???????????????????????????????????? | +----------------------------------------------------+ Best States ------------- Heat Dissipation 74 Coolant Potential 120 Energy Generation 45 Energy Capacity 600 Matter Stores 300 Matter Capacity 300 Sight Range 16 Terrain Scan Range 20 Terrain Scan Density 10 Jamming Range 16 Cloak Strength 4 Armor Coverage 1200 Resistance: KI 30 Resistance: EM 15 Propulsion Shielding 90 Utility Shielding 66 Phase Shifting 15 Evasion (%) 65 Melee Accuracy 6 Target Analysis 8 Recoil Reduction 6 Particle Charging 15 Offensive Hacking 20 Relay Coupler Types 8 Relay Coupler Value 218 Trap Extractor Capacity 6 Item Schematics ----------------- Huge Storage Unit | -10/Materials | Hacked Remote Datajack | -8/Materials | Scanalyzed Robot Schematics ------------------ None Fabricated ------------ Imp. Force Field | x2 | -7/Factory | Preloaded Alien Tech Used ----------------- None Achievements -------------- Speed Demon Supersonic Whoosh! Challenges ------------ None Game ------ Seed DimensionalChromaticMace Manual? 0 Play Time 03:36:24 Cumulative 289.9 hours Start 2023.03.05 @ 16:06:01 End 2023.03.06 @ 23:52:30 Sessions 3 Manual Loads 0 Difficulty Rogue Special Mode None Game No. 420 Rogue 398 Adventurer 4 Explorer 18 Win Type 0 Total 12 Types 10/0/0/2/0/0/0/0/0 Lore% 70 Gallery% 90 Achievement% 74 Wizard Run 0 Options --------- ASCII 0 Keyboard 1 Movement Numpad Keybinds 0 Fullscreen 2 Font 18/SmallcapsGlow Map View 76x50 Tactical HUD 1 Map Filters NONE Filters NONE Steam X RUN: c65ce2e2-c083-49d0-96d3-e9ecd7191b87